fUSD/lending_fUSD_20240125
["ID","MTS","AMOUNT","RATE_DAILY","PERIOD"]
[312747336,1706192958690,-1407.98,0.00029879,2]
[312747337,1706192958710,-1000.0,0.00029879,2]
[312747338,1706192958735,-156.5,0.00029919,2]
[312747339,1706192958753,-155.0,0.0003,2]
[312747340,1706192958773,-5623.87809387,0.0003,2]
[312747341,1706192958792,-155.0,0.0003,2]
[312747342,1706192958812,-326.5,0.00030022,2]
[312747343,1706192958832,-250.0,0.00030027,2]
[312747344,1706192958854,-321.33172353,0.00030027,2]
[312747345,1706192961110,-1678.66827647,0.00030027,2]
[312747346,1706192961130,-156.5,0.00030049,2]
[312747347,1706192961149,-250.0,0.000301,2]
[312747348,1706192961169,-23900.0,0.00030105,2]
[312747349,1706192961187,-357.36,0.00030105,2]
[312747350,1706192961207,-156.5,0.00030179,2]
[312747351,1706192961227,-156.5,0.00030309,2]
[312747352,1706192961247,-212.56,0.00030397,120]
[312747353,1706192961268,-156.5,0.00030439,2]
[312747354,1706192961286,-156.5,0.00030569,2]
[312747355,1706192961305,-156.5,0.00030699,2]
[312747356,1706192961324,-156.5,0.00030829,2]
[312747357,1706192961342,-156.5,0.00030959,2]
[312747358,1706192961361,-597.18,0.00031018,2]
[312747359,1706192961380,-177.77,0.00031073,2]
[312747360,1706192961398,-156.5,0.00031089,2]
[312747361,1706192961418,-156.5,0.00031219,2]
[312747362,1706192961437,-392.68,0.00031322,2]
[312747363,1706192961456,-156.5,0.00031349,2]
[312747364,1706192961477,-3050.71772353,0.00031374,2]
[312747365,1706192968097,-6592.41429114,0.00031374,2]
[312747366,1706192968118,-156.5,0.00031478,2]
[312747367,1706192968138,-199.55,0.00031568,2]
[312747368,1706192968158,-2630.93,0.00031573,2]
[312747369,1706192968177,-15578.6062,0.00031593,2]
[312747370,1706192968198,-3737.3749,0.00031593,2]
[312747371,1706192968224,-182.38141098,0.0003169,2]
[312747372,1706192968244,-588.40515981,0.00031691,2]
[312747373,1706192968263,-4742.97156009,0.00031692,4]
[312747374,1706192968283,-122414.98647798,0.00031693,2]
[312747375,1706192994660,-1001.52344414,0.00031371,2]
[312747376,1706192994688,-500.0,0.00031372,2]
[312747377,1706192994717,-182.53563924,0.00031372,4]
[312747378,1706192994744,-1000.0,0.00031373,4]
[312747379,1706192994770,-2000.81859631,0.00031692,4]
[312747380,1706192994795,-25737.79735416,0.00031692,4]
[312747381,1706192994821,-226.55151585,0.00031692,2]
[312747382,1706192994848,-527030.80323125,0.00031693,2]
[312747383,1706193006630,-150.0,0.00031692,2]
[312747384,1706193006656,-500.0,0.00031692,2]
[312747385,1706193006682,-30649.2265497,0.00031693,2]
[312747386,1706193006706,-155.49445033,0.00031695,4]
[312747387,1706193006733,-1115.45000218,0.00031695,4]
[312747388,1706193006759,-483.18252568,0.00031695,4]
[312747389,1706193006784,-226.11786442,0.00031695,4]
[312747390,1706193006808,-285.40909205,0.00031695,4]
[312747391,1706193006832,-1853.57655761,0.00031695,4]
[312747392,1706193006855,-2704.17548496,0.00031695,4]
[312747393,1706193006879,-1761.91449993,0.00031695,4]
[312747394,1706193006903,-376.54658441,0.00031695,4]
[312747395,1706193006926,-412.833,0.00031695,4]
[312747396,1706193006951,-571.26644582,0.00031696,4]
[312747397,1706193006977,-500.29942238,0.00031696,2]
[312747398,1706193007003,-17712.53934843,0.00031696,4]
[312747399,1706193007030,-277.97004527,0.00031696,4]
[312747400,1706193007055,-156.63921255,0.00031696,4]
[312747401,1706193007078,-214.25314506,0.00031696,4]
[312747402,1706193007103,-474.49553873,0.00031696,4]
[312747403,1706193007127,-155.32990661,0.00031696,2]
[312747404,1706193007151,-23193.96690685,0.00031697,2]
[312747405,1706193007175,-4627.55845064,0.00031697,4]
[312747406,1706193007198,-941.78794294,0.00031697,4]
[312747407,1706193007222,-155.84856922,0.00031697,4]
[312747408,1706193007245,-357.10627192,0.00031697,2]
[312747409,1706193007271,-654.12664223,0.00031697,4]
[312747410,1706193007296,-8019.49600172,0.00031697,4]
[312747411,1706193007320,-44366.0358222,0.00031698,2]
[312747412,1706193007345,-5000.0,0.00032,2]
[312747413,1706193007371,-326.5,0.00032286,2]
[312747414,1706193007395,-203.2,0.00032295,2]
[312747415,1706193007420,-597.18,0.00032661,2]
[312747416,1706193007445,-164.13,0.00032877,15]
[312747417,1706193007618,-392.68,0.00032888,2]
[312747418,1706193007644,-27000.79268719,0.00033,4]
[312747419,1706193007668,-1000.0,0.00033614,2]
[312747420,1706193007695,-199.55,0.00033743,2]
[312747421,1706193007718,-250.0,0.00033928,2]
[312747422,1706193007745,-1000.0,0.00034,4]
[312747423,1706193007771,-597.18,0.00034305,2]
[312747424,1706193007796,-153.3136744,0.00034323,2]
[312747425,1706193007823,-392.68,0.00034454,2]
[312747426,1706193007847,-326.5,0.00034549,2]
[312747427,1706193007872,-1789.0,0.0003465,2]
[312747428,1706193007896,-600.06277183,0.000349,2]
[312747429,1706193007920,-313.07250057,0.0003498,14]
[312747430,1706193007943,-1261.86346022,0.00035,4]
[312747431,1706193007969,-16458.70979912,0.00035,2]
[312747432,1706193007997,-250.0,0.00035642,2]
[312747433,1706193008024,-597.18,0.00035949,2]
[312747434,1706193008048,-392.68,0.0003602,2]
[312747435,1706193008073,-2000.0,0.00036126,2]
[312747436,1706193008098,-152.60312975,0.00036713,2]
[312747437,1706193008123,-326.5,0.00036813,2]
[312747438,1706193008147,-1000.0,0.00037349,2]
[312747439,1706193008173,-392.68,0.00037586,2]
[312747440,1706193008198,-597.18,0.00037593,2]
[312747441,1706193008223,-667.30341047,0.00037888,11]
[312747442,1706193008247,-150.0,0.00037888,2]
[312747443,1706193008276,-150.01,0.00038356,2]
[312747444,1706193008300,-1703.51479217,0.00038459,4]
[312747445,1706193008325,-3500.79793331,0.00038878,4]
[312747446,1706193008349,-2205.1,0.00038879,4]
[312747447,1706193008373,-150.0,0.00038879,2]
[312747448,1706193008398,-7835.37444407,0.0003888,2]
[312747449,1706193008423,-7835.37444402,0.0003888,2]
[312747450,1706193008449,-326.5,0.00039077,2]
[312747451,1706193008473,-500.0,0.000393,15]
[312747452,1706193008497,-7835.37444402,0.00039326,2]
[312747453,1706193008521,-1000.0,0.000396,15]
[312747454,1706193008545,-219.91989013,0.0004,2]
[312747455,1706193008569,-569.5924431,0.0004,4]
[312747456,1706193010195,23900.0,0.00035938,2]
[312747458,1706193026188,-19709.0,0.00040097,2]
[312747459,1706193026213,-150.01,0.000401,2]
[312747460,1706193026238,-1000.0,0.000403,15]
[312747461,1706193026264,-667.30341042,0.00040344,14]
[312747462,1706193026289,-1704.77897978,0.00040455,12]
[312747463,1706193026315,-548.43,0.00040947,2]
[312747464,1706193026339,-189.109829,0.0004099,2]
[312747465,1706193026364,-164.083198,0.0004099,2]
[312747466,1706193026390,-1000.0,0.00041084,2]
[312747467,1706193026415,-500.0,0.000411,2]
[312747468,1706193026440,-208.59,0.00041156,2]
[312747469,1706193026465,-155.0,0.00041329,2]
[312747470,1706193026489,-29414.62554761,0.0004133,4]
[312747471,1706193026514,-98097.8242756,0.00041331,7]
[312747472,1706193026541,-326.5,0.00041341,2]
[312747473,1706193026566,-150.01,0.00041843,2]
[312747474,1706193026596,-840.85262393,0.00042,120]
[312747475,1706193026622,-594.39054103,0.00042,4]
[312747476,1706193026647,-152.60312971,0.0004267,16]
[312747477,1706193026677,-667.30341042,0.00042799,17]
[312747478,1706193026703,-2630.93,0.00042806,2]
[312747479,1706193026730,-153.3136744,0.00042962,2]
[312747480,1706193026762,-7835.37444402,0.00043193,5]
[312747481,1706193026788,-150.01,0.00043587,2]
[312747482,1706193026814,-326.5,0.00043605,2]
[312747483,1706193026839,-187.5,0.00043835,120]
[312747484,1706193026863,-1592.54670592,0.00044,30]
[312747485,1706193026887,-600.0,0.00044531,2]
[312747486,1706193026914,-1000.0,0.00044819,2]
[312747487,1706193026938,-1375.464,0.0004499,14]
[312747488,1706193026964,-150.0,0.0004499,30]
[312747489,1706193026988,-150.0,0.00045,2]
[312747490,1706193027014,-667.30341042,0.00045255,20]
[312747491,1706193027040,-150.01,0.0004533,2]
[312747492,1706193027065,-326.5,0.00045869,2]
[312747493,1706193027090,-2242.19174214,0.00046575,30]
[312747494,1706193027115,-375.0,0.00046575,120]
[312747495,1706193027141,-164.13,0.00046575,15]
[312747496,1706193027168,-7835.37444402,0.00047061,8]
[312747497,1706193027193,-150.01,0.00047073,2]
[312747498,1706193027217,-157.22632845,0.00047351,30]
[312747499,1706193027242,-1000.0,0.000474,2]
[312747500,1706193027266,-158.64926305,0.00047452,30]
[312747501,1706193027293,-530.56571045,0.00047468,30]
[312747502,1706193027320,-199.59988663,0.00047511,30]
[312747503,1706193027345,-153.81421212,0.00047582,30]
[312747504,1706193027370,-157.92354987,0.00047613,30]
[312747505,1706193027394,-151.01696797,0.00047663,30]
[312747506,1706193027423,-530.56571045,0.0004769,30]
[312747507,1706193027449,-667.30341042,0.00047711,23]
[312747508,1706193027475,-265.58161954,0.00047779,30]
[312747509,1706193027500,-199.59988663,0.00047813,30]
[312747510,1706193027528,-154.12062205,0.00047816,30]
[312747511,1706193027553,-5000.0,0.00047925,7]
[312747512,1706193027747,-169.67581314,0.00047968,30]
[312747513,1706193027774,-157.92354987,0.00048013,30]
[312747514,1706193027801,-55973.09845834,0.00048025,20]
[312747515,1706193027829,-26925.97905774,0.00048025,20]
[312747516,1706193027854,-3306.03136923,0.00048025,16]
[312747517,1706193027879,-3464.61914203,0.00048025,20]
[312747518,1706193027904,-199.59988663,0.00048026,30]
[312747519,1706193027929,-326.5,0.00048133,2]
[312747520,1706193027955,-199.59988663,0.00048166,30]
[312747521,1706193027979,-265.58161954,0.00048184,30]
[312747522,1706193028004,-154.5774293,0.00048221,30]
[312747523,1706193028029,-158.38940749,0.00048283,30]
[312747524,1706193028053,-265.58161954,0.00048315,30]
[312747525,1706193028078,-1111.8501248,0.00048329,4]
[312747526,1706193028104,-199.59988663,0.00048336,30]
[312747527,1706193028129,-167.98831499,0.00048389,30]
[312747528,1706193028155,-530.56571045,0.00048447,30]
[312747529,1706193028180,-154.67858105,0.0004857,30]
[312747530,1706193028205,-199.59988663,0.00048604,30]
[312747531,1706193028229,-530.56571045,0.00048612,30]
[312747532,1706193028254,-265.58161954,0.00048613,30]
[312747533,1706193028283,-152.60312971,0.00048628,39]
[312747534,1706193028307,-154.67858105,0.00048684,30]
[312747535,1706193028331,-530.56571045,0.0004873,30]
[312747536,1706193028356,-265.58161954,0.00048814,30]
[312747537,1706193028382,-150.01,0.00048817,2]
[312747538,1706193028409,-157.22632845,0.00048847,30]
[312747539,1706193028436,-530.56571045,0.00048925,30]
[312747540,1706193028461,-799.36212729,0.00048938,30]
[312747541,1706193028487,-151.01696797,0.00049095,30]
[312747542,1706193028514,-199.59988663,0.00049144,30]
[312747543,1706193028543,-151.01696797,0.00049274,30]
[312747544,1706193028568,-1691.0,0.000493,30]
[312747545,1706193028593,-98097.8242756,0.00049304,11]
[312747546,1706193028621,-448.27259389,0.00049312,4]
[312747547,1706193028645,-524.31366153,0.00049313,4]
[312747548,1706193028669,-113764.57765584,0.00049314,4]
[312747549,1706193028693,-562.5,0.00049315,120]
[312747550,1706193028718,-950.0,0.00049315,7]
[312747551,1706193028744,-2400.0,0.00049315,30]
[312747552,1706193028771,-265.58161954,0.00049408,30]
[312747553,1706193028799,-153.31145116,0.00049455,30]
[312747554,1706193028825,-199.59988663,0.0004957,30]
[312747555,1706193028850,-950.0,0.00049589,7]
[312747556,1706193028885,-265.58161954,0.00049643,30]
[312747557,1706193028916,-530.56571045,0.00049657,30]
[312747558,1706193028941,-151.01696797,0.00049747,30]
[312747559,1706193028968,-265.58161954,0.00049812,30]
[312747560,1706193028992,-199.59988663,0.00049837,30]
[312747561,1706193029019,-181.199999,0.00049846,30]
[312747562,1706193029046,-181.2,0.00049846,30]
[312747563,1706193029071,-530.56571045,0.00049852,30]
[312747564,1706193029095,-950.0,0.00049863,7]
[312747565,1706193029122,-166.02288615,0.000499,2]
[312747566,1706193029146,-154.5774293,0.00049924,30]
[312747567,1706193029171,-265.58161954,0.00049951,30]
[312747568,1706193029195,-265.58161954,0.00049964,30]
[312747569,1706193029220,-26892.80733379,0.0005,4]
[312747570,1706193029245,-7854.81481948,0.0005,4]
[312747571,1706193029269,-18913.69275846,0.0005,20]
[312747572,1706193029296,-1500.4260075,0.0005,4]
[312747573,1706193029321,-490.51702752,0.0005,30]
[312747574,1706193029346,-14441.0,0.0005,13]
[312747575,1706193029370,-268.0,0.0005,30]
[312747576,1706193030108,200.0,0.00031693,2]
[312747577,1706193030299,1396.79668014,0.00041452,2]
[312747586,1706193033109,674.9,0.00048015,10]
[312747593,1706193034549,-768.48559434,0.00041452,2]
[312747594,1706193034559,-530.56571045,0.00050003,60]
[312747595,1706193034569,-158.38940749,0.00050009,60]
[312747596,1706193034578,-971.85,0.00050064,10]
[312747597,1706193034587,-809.87,0.00050064,10]
[312747598,1706193034597,-799.36212729,0.00050074,60]
[312747599,1706193034606,-600.0,0.00050097,2]
[312747600,1706193034616,-750.0,0.000501,2]
[312747601,1706193034625,-162.32786329,0.00050102,60]
[312747602,1706193034634,-162.78049167,0.00050115,60]
[312747603,1706193034643,-158.64926305,0.00050119,60]
[312747604,1706193034652,-950.0,0.00050136,7]
[312747605,1706193034666,-667.30341042,0.00050166,26]
[312747606,1706193034682,-799.36212729,0.00050179,60]
[312747607,1706193034691,-160.00655727,0.000502,30]
[312747608,1706193034700,-174.13403782,0.00050281,60]
[312747609,1706193034710,-154.5774293,0.00050298,60]
[312747610,1706193034719,-153.81421212,0.00050308,60]
[312747611,1706193034729,-265.58161954,0.00050366,60]
[312747612,1706193034740,-326.5,0.00050397,2]
[312747613,1706193034750,-150.33,0.00050405,5]
[312747614,1706193034759,-963.35663266,0.0005041,7]
[312747615,1706193034770,-153.90506378,0.0005042,60]
[312747616,1706193034794,-153.90506378,0.00050439,60]
[312747617,1706193034803,-154.5774293,0.0005045,60]
[312747618,1706193034812,-150.01,0.0005056,2]
[312747619,1706193034822,-156.80600206,0.00050651,60]
[312747621,1706193034833,-154.5774293,0.00050679,60]
[312747623,1706193034842,-154.5774293,0.00050704,60]
[312747625,1706193034851,-1455.10758555,0.00050744,5]
[312747627,1706193034860,-199.59988663,0.00050755,60]
[312747629,1706193034870,-7835.37444402,0.00050929,12]
[312747631,1706193034880,-799.36212729,0.00050949,60]
[312747633,1706193034888,-200.0,0.00050987,50]
[312747635,1706193034898,-200.0,0.00050987,40]
[312747637,1706193034906,-154.5774293,0.00051073,60]
[312747639,1706193034917,-153.81421212,0.00051136,60]
[312747641,1706193034927,-199.59988663,0.00051219,60]
[312747643,1706193034936,-279.0,0.00051233,6]
[312747645,1706193034945,-167.08770991,0.00051447,60]
[312747647,1706193034954,-199.59988663,0.00051493,60]
[312747649,1706193034963,-824.16700078,0.000515,120]
[312747651,1706193034972,-600.0,0.0005155,30]
[312747653,1706193034982,-600.0,0.0005155,31]
[312747655,1706193034991,-600.0,0.0005155,32]
[312747657,1706193035000,-600.0,0.0005155,33]
[312747659,1706193035010,-309.71921306,0.0005155,34]
[312747661,1706193035019,-1797.0,0.0005159,2]
[312747663,1706193035031,-2794.0,0.0005159,2]
[312747665,1706193035040,-34060.2481,0.000516,2]
[312747667,1706193035049,-153.3136744,0.000516,2]
[312747669,1706193035058,-265.58161954,0.00051665,60]
[312747671,1706193035067,-500.0,0.00051679,120]
[312747672,1706193035076,-15719.2577,0.0005168,2]
[312747674,1706193035086,-2360.0,0.000517,117]
[312747676,1706193035095,-199.59988663,0.00051823,60]
[312747677,1706193035104,-799.36212729,0.00051855,60]
[312747678,1706193035114,-265.58161954,0.00051937,60]
[312747679,1706193035123,-157.92354987,0.00051967,60]
[312747680,1706193035132,-500.0,0.0005198,120]
[312747681,1706193035141,-200.0,0.00051987,51]
[312747682,1706193035151,-200.0,0.00051987,44]
[312747683,1706193035161,-162.11680976,0.00051987,2]
[312747684,1706193035170,-98097.8242756,0.0005199,12]
[312747685,1706193035180,-2611.38312164,0.00052,2]
[312747686,1706193035190,-200.0,0.00052,120]
[312747687,1706193035199,-257.33,0.00052,60]
[312747688,1706193035208,-200.0,0.00052,120]
[312747689,1706193035218,-2000.0,0.00052054,120]
[312747690,1706193035228,-199.59988663,0.00052064,60]
[312747691,1706193035239,-199.59988663,0.00052099,60]
[312747692,1706193035249,-147.18304707,0.00052137,60]
[312747693,1706193035296,-236.32111242,0.00052137,60]
[312747694,1706193035306,-548.43,0.0005218,2]
[312747695,1706193035316,-177.72112963,0.00052217,60]
[312747696,1706193035325,-175.68587464,0.00052218,60]
[312747697,1706193035335,-153.31145116,0.00052258,60]
[312747698,1706193035344,-265.58161954,0.00052267,60]
[312747699,1706193035353,-500.0,0.00052282,120]
[312747700,1706193035362,-142.94881261,0.00052304,2]
[312747701,1706193035374,-7.06118739,0.00052304,2]
[312747702,1706193035384,-530.56571045,0.00052334,60]
[312747703,1706193035394,-445.1369246,0.00052356,60]
[312747704,1706193035405,-85.42878585,0.00052356,60]
[312747705,1706193035414,-799.36212729,0.00052369,60]
[312747706,1706193035424,-265.58161954,0.00052384,60]
[312747707,1706193035433,-150.101,0.000524,30]
[312747708,1706193035443,-150.101,0.000524,30]
[312747709,1706193035453,-152.5171253,0.000524,30]
[312747710,1706193035463,-752.59232144,0.000525,30]
[312747711,1706193035472,-154.5774293,0.00052514,60]
[312747712,1706193035481,-530.56571045,0.00052554,60]
[312747713,1706193035491,-281.9,0.00052583,120]
[312747714,1706193035500,-667.30341042,0.00052622,29]
[312747715,1706193035509,-265.58161954,0.0005265,60]
[312747716,1706193035518,-154.12062205,0.00052651,60]
[312747717,1706193035528,-326.5,0.00052661,2]
[312747718,1706193035539,-530.56571045,0.00052766,60]
[312747719,1706193035548,-799.36212729,0.00052797,60]
[312747720,1706193035558,-154.23863763,0.00052852,60]
[312747721,1706193035567,-692.19116482,0.00052869,12]
[312747722,1706193035611,-657.81109751,0.00052869,12]
[312747723,1706193036040,-4467.74479929,0.00052869,12]
[312747724,1706193036052,-2182.18,0.00052869,12]
[312747725,1706193036063,-1272.92017302,0.00052869,12]
[312747726,1706193036075,-1908.94336634,0.00052869,12]
[312747727,1706193036087,-1170.87002281,0.00052869,12]
[312747728,1706193036099,-81302.73548652,0.00052869,12]
[312747729,1706193036124,-2097.41534152,0.00052869,12]
[312747730,1706193036136,-1472.97,0.00052869,12]
[312747741,1706193037884,-454.19161312,0.00052869,12]
[312747742,1706193037897,-417.85121065,0.00052869,12]
[312747743,1706193037908,-362.94454768,0.00052871,30]
[312747744,1706193037918,-57.08739597,0.00052875,30]
[312747745,1706193037941,-298.70714233,0.00052875,30]
[312747746,1706193037951,-1534.13003099,0.00052875,30]
[312747747,1706193037961,-59931.0,0.00052877,30]
[312747748,1706193037970,-155.0,0.00052877,10]
[312747749,1706193037979,-2331.51650854,0.00052879,2]
[312747750,1706193037989,-200.0,0.0005289,60]
[312747751,1706193037999,-362.94454768,0.00052892,30]
[312747752,1706193038009,-1534.13003099,0.00052893,30]
[312747753,1706193038018,-156.80600206,0.00052893,60]
[312747754,1706193038028,-802.46801616,0.00052897,60]
[312747755,1706193038040,-355.7945383,0.00052899,30]
[312747756,1706193038049,-990.41899025,0.000529,30]
[312747757,1706193038059,-750.0,0.000529,2]
[312747758,1706193038069,-802.46801616,0.00052901,60]
[312747759,1706193038078,-362.94454768,0.00052903,30]
[312747760,1706193038087,-200.0,0.00052904,60]
[312747761,1706193038096,-362.94454768,0.00052905,30]
[312747762,1706193038106,-1534.13003099,0.00052905,30]
[312747763,1706193038115,-355.7945383,0.00052907,30]
[312747764,1706193038125,-1534.13003099,0.00052908,30]
[312747765,1706193038135,-200.0,0.00052913,60]
[312747766,1706193038145,-355.7945383,0.00052914,30]
[312747767,1706193038154,-199.59988663,0.00052927,60]
[312747768,1706193038164,-200.0,0.00052927,60]
[312747769,1706193038174,-199.59988663,0.00052956,60]
[312747770,1706193038184,-265.58161954,0.00052965,60]
[312747771,1706193038193,-300.0,0.0005297,7]
[312747772,1706193038203,-250.0,0.0005297,7]
[312747773,1706193038212,-200.0,0.00052987,52]
[312747774,1706193038222,-200.0,0.00052987,48]
[312747775,1706193038231,-2834.31358503,0.00053,45]
[312747776,1706193038241,-1887.4450831,0.00053,45]
[312747777,1706193038250,-210.19679439,0.00053,10]
[312747778,1706193038260,-330.60313692,0.00053,45]
[312747779,1706193038269,-500.0,0.00053,26]
[312747780,1706193038279,-500.0,0.00053,26]
[312747781,1706193038290,-519.21918505,0.00053,26]
[312747782,1706193038299,-202.0,0.00053,20]
[312747783,1706193038308,-265.58161954,0.00053081,60]
[312747785,1706193038318,-200.0,0.00053123,120]
[312747787,1706193038327,-799.36212729,0.00053169,60]
[312747789,1706193038336,-200.0,0.00053233,120]
[312747791,1706193038346,-150.24806042,0.00053253,60]
[312747793,1706193038355,-153.31145116,0.00053288,60]
[312747795,1706193038365,-169.67581314,0.0005335,60]
[312747797,1706193038374,-1846.3646639,0.00053424,120]
[312747799,1706193038383,-530.56571045,0.00053453,60]
[312747801,1706193038392,-151.01696797,0.00053464,60]
[312747803,1706193038402,-158.0,0.000535,120]
[312747805,1706193038412,-159.0,0.000535,120]
[312747807,1706193038421,-162.32786329,0.0005358,60]
[312747809,1706193038431,-202.0,0.00053583,20]
[312747811,1706193038440,-162.78049167,0.00053627,60]
[312747813,1706193038449,-199.59988663,0.00053684,60]
[312747815,1706193038458,-530.56571045,0.00053737,60]
[312747817,1706193038467,-154.12062205,0.00053785,60]
[312747819,1706193038476,-530.56571045,0.00053828,60]
[312747821,1706193038485,-799.36212729,0.00053839,60]
[312747823,1706193038494,-154.5774293,0.00053862,60]
[312747825,1706193038504,-153.81421212,0.00053867,60]
[312747827,1706193038513,-530.56571045,0.0005389,60]
[312747829,1706193038522,-151.0,0.0005392,2]
[312747831,1706193038533,-799.36212729,0.00053936,60]
[312747833,1706193038542,-153.31145116,0.00053976,60]
[312747835,1706193038551,-200.0,0.00053987,53]
[312747837,1706193038560,-200.0,0.00053987,52]
[312747839,1706193038569,-278.0,0.0005399,2]
[312747841,1706193038578,-429.0,0.0005399,2]
[312747843,1706193038587,-5000.0,0.00054,2]
[312747845,1706193038596,-158.0,0.00054,120]
[312747847,1706193038606,-2630.93,0.00054038,2]
[312747849,1706193038615,-265.58161954,0.00054046,60]
[312747851,1706193038624,-150.01,0.00054047,2]
[312747853,1706193038634,-157.22632845,0.00054071,60]
[312747855,1706193038643,-199.59988663,0.00054086,60]
[312747857,1706193038651,-1296.31052883,0.00054137,2]
[312747859,1706193038661,-202.0,0.00054167,20]
[312747861,1706193038670,-530.56571045,0.00054236,60]
[312747863,1706193038679,-200.0,0.00054247,120]
[312747865,1706193038688,-158.38940749,0.00054298,60]
[312747867,1706193038697,-265.58161954,0.00054354,60]
[312747869,1706193038706,-530.56571045,0.00054401,60]
[312747871,1706193038715,-799.36212729,0.00054465,60]
[312747873,1706193038724,-200.0,0.00054466,120]
[312747875,1706193038738,-151.01696797,0.00054479,60]
[312747877,1706193038747,-158.0,0.000545,120]
[312747879,1706193038756,-167.0,0.00054521,3]
[312747880,1706193038766,-152.60312971,0.00054585,62]
[312747883,1706193038777,-159.0,0.000546,120]
[312747885,1706193038789,-530.56571045,0.00054666,60]
[312747887,1706193038798,-219.0,0.0005469,2]
[312747888,1706193038807,-2598.2,0.00054727,117]
[312747891,1706193038817,-202.0,0.0005475,20]
[312747893,1706193038826,-196195.648551,0.00054784,13]
[312747895,1706193038835,-199.59988663,0.00054785,60]
[312747897,1706193038843,-517.44896096,0.00054794,120]
[312747899,1706193038853,-501.83016564,0.00054794,120]
[312747901,1706193038862,-500.0,0.00054794,120]
[312747902,1706193038871,-506.16133861,0.00054794,120]
[312747904,1706193038880,-500.0,0.00054794,120]
[312747907,1706193038890,-515.05443146,0.00054794,120]
[312747909,1706193038900,-500.0,0.00054794,120]
[312747911,1706193038908,-594.23,0.00054794,120]
[312747912,1706193038918,-500.0,0.00054794,120]
[312747914,1706193038927,-523.30193801,0.00054794,120]
[312747916,1706193038936,-500.0,0.00054794,120]
[312747918,1706193038949,-540.08682039,0.00054794,120]
[312747920,1706193038959,-506.07946818,0.00054794,120]
[312747923,1706193038971,-508.80375414,0.00054794,120]
[312747925,1706193038980,-511.78366353,0.00054794,120]
[312747926,1706193038990,-508.17160867,0.00054794,120]
[312747929,1706193038999,-513.57429299,0.00054794,120]
[312747930,1706193039009,-845.76515078,0.00054794,120]
[312747933,1706193039019,-500.0,0.00054794,120]
[312747934,1706193039028,-500.0,0.00054794,120]
[312747936,1706193039039,-511.13486277,0.00054794,120]
[312747938,1706193039049,-520.99087645,0.00054794,120]
[312747940,1706193039058,-508.98195912,0.00054794,120]
[312747943,1706193039067,-503.11258922,0.00054794,120]
[312747944,1706193039077,-500.0,0.00054794,120]
[312747947,1706193039086,-500.01578864,0.00054794,120]
[312747948,1706193039095,-500.0,0.00054794,120]
[312747950,1706193039105,-500.0,0.00054794,120]
[312747953,1706193039115,-512.09602903,0.00054794,120]
[312747954,1706193039124,-500.0,0.00054794,120]
[312747957,1706193039133,-500.0,0.00054794,120]
[312747959,1706193039143,-532.94725601,0.00054794,120]
[312747960,1706193039153,-507.90429683,0.00054794,120]
[312747963,1706193039162,-509.92682622,0.00054794,120]
[312747964,1706193039171,-512.71921379,0.00054794,120]
[312747966,1706193039181,-500.0,0.00054794,120]
[312747968,1706193039190,-1000.0,0.00054794,120]
[312747970,1706193039199,-163.1230896,0.00054794,120]
[312747972,1706193039209,-511.96966087,0.00054794,120]
[312747974,1706193039218,-512.05792877,0.00054794,120]
[312747977,1706193039227,-500.0,0.00054794,120]
[312747978,1706193039237,-512.19749779,0.00054794,120]
[312747980,1706193039246,-504.81913099,0.00054794,120]
[312747982,1706193039255,-500.0,0.00054794,120]
[312747984,1706193039264,-516.98408889,0.00054794,120]
[312747986,1706193039273,-500.0,0.00054794,120]
[312747988,1706193039282,-516.58432734,0.00054794,120]
[312747991,1706193039291,-512.95659628,0.00054794,120]
[312747993,1706193039301,-503.35192156,0.00054794,120]